fUST/lending_fUST_20250829
["ID","MTS","AMOUNT","RATE_DAILY","PERIOD"]
[381925634,1756411853055,-480.0,0.00021917,2]
[381925635,1756411853066,-480.0,0.00021917,2]
[381925636,1756411853075,-480.0,0.00021917,2]
[381925637,1756411853085,-480.0,0.00021917,2]
[381925638,1756411853094,-480.0,0.00021917,2]
[381925639,1756411853103,-480.0,0.00021917,2]
[381925640,1756411853113,-365.19,0.00021917,2]
[381925641,1756411853122,-480.0,0.00021917,2]
[381925642,1756411853131,-480.0,0.00021917,2]
[381925643,1756411853141,-594.66,0.00021917,2]
[381925644,1756411853150,-307.43,0.00021917,2]
[381925645,1756411853160,-480.0,0.00021917,2]
[381925646,1756411853169,-480.0,0.00021917,2]
[381925647,1756411853179,-480.0,0.00021917,2]
[381925648,1756411853188,-480.0,0.00021917,2]
[381925649,1756411853197,-480.0,0.00021917,2]
[381925650,1756411853207,-480.0,0.00021917,2]
[381925651,1756411853216,-480.0,0.00021917,2]
[381925652,1756411853226,-480.0,0.00021917,2]
[381925653,1756411853235,-480.0,0.00021917,2]
[381925654,1756411853245,-480.0,0.00021917,2]
[381925655,1756411853256,-480.0,0.00021917,2]
[381925656,1756411853265,-151.0,0.00021917,2]
[381925657,1756411853275,-4619.09,0.00021917,2]
[381925658,1756411853285,-151.0,0.00021917,2]
[381925659,1756411853294,-151.0,0.00021917,2]
[381925660,1756411853303,-151.0,0.00021917,2]
[381925661,1756411853313,-174.86144,0.00021917,2]
[381925662,1756411853326,-174.86144,0.00021917,2]
[381925663,1756411853336,-174.86144,0.00021917,2]
[381925664,1756411853345,-495.97,0.00021917,2]
[381925665,1756411853355,-174.86144,0.00021917,2]
[381925666,1756411853366,-480.0,0.00021917,2]
[381925667,1756411853375,-1951.19,0.00021917,2]
[381925668,1756411853384,-153.298943,0.00021917,2]
[381925669,1756411853394,-151.0,0.00021917,2]
[381925670,1756411853404,-2127.68,0.00021917,2]
[381925671,1756411853414,-4797.2,0.00021917,2]
[381925672,1756411853424,-480.0,0.00021917,2]
[381925673,1756411853434,-480.0,0.00021917,2]
[381925674,1756411853446,-480.0,0.00021917,2]
[381925675,1756411853456,-480.0,0.00021917,2]
[381925676,1756411853466,-2717.58,0.00021917,2]
[381925677,1756411853476,-579.96,0.00021917,2]
[381925678,1756411853487,-1976.13,0.00021917,2]
[381925679,1756411853497,-224.79,0.00021917,2]
[381925680,1756411853510,-480.0,0.00021917,2]
[381925681,1756411853520,-514.87,0.00021917,2]
[381925682,1756411853531,-2991.83,0.00021917,2]
[381925683,1756411853541,-480.0,0.00021917,2]
[381925684,1756411853550,-480.0,0.00021917,2]
[381925685,1756411853560,-480.0,0.00021917,2]
[381925686,1756411853569,-480.0,0.00021917,2]
[381925687,1756411853579,-660.99,0.00021917,2]
[381925688,1756411853589,-500.0,0.00021917,2]
[381925689,1756411853598,-438.23862184,0.00021917,2]
[381925690,1756411853608,-209.16,0.00021917,2]
[381925691,1756411853617,-480.0,0.00021917,2]
[381925692,1756411853627,-500.0,0.00021918,2]
[381925693,1756411853636,-151.87531,0.00021918,2]
[381925694,1756411853646,-705.469654,0.00021918,2]
[381925695,1756411853767,-705.469654,0.00021918,2]
[381925696,1756411853778,-705.469654,0.00021918,2]
[381925697,1756411853788,-705.469654,0.00021918,2]
[381925698,1756411853797,-705.469654,0.00021918,2]
[381925699,1756411853807,-705.469654,0.00021918,2]
[381925700,1756411853817,-705.469654,0.00021918,2]
[381925701,1756411853827,-705.469654,0.00021918,2]
[381925702,1756411853837,-150.0,0.00021918,2]
[381925703,1756411853848,-150.0,0.00021918,2]
[381925704,1756411853858,-250.0,0.00021955,2]
[381925705,1756411853868,-187.78006525,0.00021955,2]
[381925706,1756411853880,-250.0,0.00021955,2]
[381925707,1756411853892,-250.0,0.00021955,2]
[381925708,1756411853906,-250.0,0.00021955,2]
[381925709,1756411853916,-2347.87260389,0.00021955,2]
[381925710,1756411853926,-2000.0,0.00021964,2]
[381925711,1756411853936,-2500.0,0.00021964,2]
[381925712,1756411853945,-805.33,0.00022,7]
[381925713,1756411853954,-4391.73574198,0.00022,2]
[381925714,1756411854040,-307.647909,0.00018603,2]
[381925715,1756411854050,-385.6972762,0.00018868,2]
[381925716,1756411854061,-1157.77352745,0.00022,2]
[381925717,1756411854072,-5410.33073057,0.00022,2]
[381925718,1756411854083,-2434.74389024,0.0002201,2]
[381925719,1756411854093,-587.0,0.00022042,2]
[381925720,1756411854103,-2524.82941417,0.00022065,2]
[381925721,1756411854114,-1729.16571723,0.00022087,2]
[381925722,1756411854124,-150.0,0.00022088,2]
[381925723,1756411854133,-150.0,0.00022088,2]
[381925724,1756411854143,-150.0,0.00022088,2]
[381925725,1756411854152,-150.0,0.00022088,2]
[381925726,1756411854161,-974.0,0.00022088,2]
[381925727,1756411854171,-2151.0,0.00022088,2]
[381925728,1756411854181,-632.0,0.00022088,2]
[381925729,1756411854191,-797.24511542,0.00022088,2]
[381925730,1756411854200,-727.47,0.000221,2]
[381925731,1756411854209,-2467.74923739,0.0002212,2]
[381925732,1756411854219,-12710.44222334,0.00022188,7]
[381925733,1756411854229,-425.52029335,0.00022188,7]
[381925734,1756411854239,-529.67291817,0.00022188,7]
[381925735,1756411854249,-216.18903889,0.00022188,7]
[381925736,1756411854260,-160.0,0.00022188,7]
[381925737,1756411854269,-417.15472785,0.00022188,7]
[381925738,1756411854279,-480.0,0.00022191,2]
[381925739,1756411854288,-359.53,0.00022191,2]
[381925740,1756411854297,-371.08,0.00022191,2]
[381925741,1756411854306,-480.0,0.00022191,2]
[381925742,1756411854315,-437.53,0.00022191,2]
[381925743,1756411854327,-480.0,0.00022191,2]
[381925744,1756411854337,-480.0,0.00022191,2]
[381925745,1756411854346,-480.0,0.00022191,2]
[381925746,1756411854355,-480.0,0.00022191,2]
[381925747,1756411854366,-559.16,0.00022191,2]
[381925748,1756411854376,-480.0,0.00022191,2]
[381925749,1756411854385,-480.0,0.00022191,2]
[381925750,1756411854395,-480.0,0.00022191,2]
[381925751,1756411854405,-480.0,0.00022191,2]
[381925752,1756411854414,-480.0,0.00022191,2]
[381925753,1756411854425,-276.450938,0.00022191,7]
[381925754,1756411854443,-151.0,0.00022191,7]
[381925755,1756411854452,-276.450938,0.00022191,7]
[381925756,1756411854462,-276.450938,0.00022191,7]
[381925757,1756411854471,-276.450938,0.00022191,7]
[381925758,1756411854481,-480.0,0.00022191,2]
[381925759,1756411854492,-343.63,0.00022191,2]
[381925760,1756411854502,-151.0,0.00022191,7]
[381925761,1756411854512,-415.57,0.00022191,2]
[381925762,1756411854521,-151.0,0.00022191,7]
[381925763,1756411854531,-151.0,0.00022191,7]
[381925764,1756411854541,-480.0,0.00022191,2]
[381925765,1756411854550,-151.0,0.00022191,7]
[381925766,1756411854560,-194.364534,0.00022191,7]
[381925767,1756411854570,-194.364534,0.00022191,7]
[381925768,1756411854580,-151.0,0.00022191,7]
[381925769,1756411854589,-194.364534,0.00022191,7]
[381925770,1756411854600,-194.364534,0.00022191,7]
[381925771,1756411854611,-151.0,0.00022191,7]
[381925772,1756411854621,-151.0,0.00022191,7]
[381925773,1756411854631,-151.0,0.00022191,7]
[381925774,1756411854640,-151.0,0.00022191,7]
[381925775,1756411854649,-227.175125,0.00022191,7]
[381925776,1756411854658,-227.175125,0.00022191,7]
[381925777,1756411854668,-227.175125,0.00022191,7]
[381925778,1756411854678,-227.175125,0.00022191,7]
[381925779,1756411854687,-4619.09,0.00022191,2]
[381925780,1756411854697,-495.97,0.00022191,2]
[381925781,1756411854707,-480.0,0.00022191,2]
[381925782,1756411854717,-1951.19,0.00022191,2]
[381925783,1756411854726,-2127.68,0.00022191,2]
[381925784,1756411854736,-480.0,0.00022191,2]
[381925785,1756411854745,-4797.2,0.00022191,2]
[381925786,1756411854755,-480.0,0.00022191,2]
[381925787,1756411854765,-480.0,0.00022191,2]
[381925788,1756411854775,-2717.58,0.00022191,2]
[381925789,1756411854785,-579.96,0.00022191,2]
[381925790,1756411854794,-1976.13,0.00022191,2]
[381925791,1756411854804,-480.0,0.00022191,2]
[381925792,1756411854814,-514.87,0.00022191,2]
[381925793,1756411854824,-2991.83,0.00022191,2]
[381925794,1756411854833,-480.0,0.00022191,2]
[381925795,1756411854843,-221.47657155,0.00022191,2]
[381925796,1756411854852,-480.0,0.00022191,2]
[381925797,1756411854861,-480.0,0.00022191,2]
[381925798,1756411854871,-660.99,0.00022191,2]
[381925799,1756411854880,-480.0,0.00022191,2]
[381925800,1756411854890,-500.0,0.00022192,2]
[381925801,1756411854899,-197.783192,0.00022257,7]
[381925802,1756411854909,-197.783192,0.00022257,7]
[381925803,1756411854918,-197.783192,0.00022257,7]
[381925804,1756411854927,-197.783192,0.00022257,7]
[381925805,1756411854937,-151.0,0.00022257,7]
[381925806,1756411854947,-151.0,0.00022257,7]
[381925807,1756411854956,-234.431541,0.00022257,7]
[381925808,1756411854966,-151.0,0.00022257,7]
[381925809,1756411854976,-151.0,0.00022257,7]
[381925810,1756411854985,-151.0,0.00022257,7]
[381925811,1756411854995,-151.0,0.00022257,7]
[381925812,1756411855004,-151.0,0.00022257,7]
[381925813,1756411855014,-360.0,0.00022387,2]
[381925814,1756411855023,-480.0,0.00022465,2]
[381925815,1756411855034,-480.0,0.00022465,2]
[381925816,1756411855043,-579.4,0.00022465,2]
[381925817,1756411855052,-151.0,0.00022465,7]
[381925818,1756411855062,-156.258648,0.00022465,7]
[381925819,1756411855071,-263.98,0.00022465,2]
[381925820,1756411855080,-151.0,0.00022465,7]
[381925821,1756411855089,-480.0,0.00022465,2]
[381925822,1756411855099,-151.0,0.00022465,7]
[381925823,1756411855108,-379.76,0.00022465,2]
[381925824,1756411855117,-397.26,0.00022465,2]
[381925825,1756411855127,-312.0,0.00022465,2]
[381925826,1756411855136,-555.36762533,0.00022465,2]
[381925827,1756411855146,-480.0,0.00022465,2]
[381925828,1756411855155,-480.0,0.00022465,2]
[381925829,1756411855165,-480.0,0.00022465,2]
[381925830,1756411855174,-169.65,0.00022465,2]
[381925831,1756411855184,-4619.09,0.00022465,2]
[381925832,1756411855194,-495.97,0.00022465,2]
[381925833,1756411855203,-480.0,0.00022465,2]
[381925834,1756411855213,-1951.19,0.00022465,2]
[381925835,1756411855223,-2127.68,0.00022465,2]
[381925836,1756411855233,-4797.2,0.00022465,2]
[381925837,1756411855242,-480.0,0.00022465,2]
[381925838,1756411855252,-480.0,0.00022465,2]
[381925839,1756411855262,-380.81890397,0.00022465,2]
[381925840,1756411855271,-2717.58,0.00022465,2]
[381925841,1756411855281,-579.96,0.00022465,2]
[381925842,1756411855291,-1976.13,0.00022465,2]
[381925843,1756411855300,-514.87,0.00022465,2]
[381925844,1756411855310,-2991.83,0.00022465,2]
[381925845,1756411855322,-480.0,0.00022465,2]
[381925846,1756411855332,-480.0,0.00022465,2]
[381925847,1756411855341,-480.0,0.00022465,2]
[381925848,1756411855351,-660.99,0.00022465,2]
[381925849,1756411855362,-151.0,0.00022465,7]
[381925850,1756411855371,-151.0,0.00022465,7]
[381925851,1756411855381,-151.0,0.00022465,7]
[381925852,1756411855390,-151.0,0.00022465,7]
[381925853,1756411855401,-151.0,0.00022465,7]
[381925854,1756411855411,-151.0,0.00022465,7]
[381925855,1756411855421,-151.0,0.00022465,7]
[381925856,1756411855430,-151.0,0.00022465,7]
[381925857,1756411855439,-151.0,0.00022465,7]
[381925858,1756411855449,-480.0,0.00022465,2]
[381925859,1756411855458,-500.0,0.00022466,2]
[381925860,1756411855468,-250.0,0.00022466,2]
[381925861,1756411855477,-300.0,0.00022466,2]
[381925862,1756411855488,-151.0,0.00022466,7]
[381925863,1756411855497,-5617.67,0.000225,7]
[381925864,1756411855506,-151.0,0.000225,7]
[381925865,1756411855516,-151.0,0.000225,7]
[381925866,1756411855526,-151.0,0.000225,7]
[381925867,1756411855536,-3000.0,0.00022512,2]
[381925868,1756411855545,-151.0,0.00022521,7]
[381925869,1756411855554,-151.0,0.00022521,7]
[381925870,1756411855564,-5000.0,0.00022733,2]
[381925871,1756411855573,-480.0,0.00022739,2]
[381925872,1756411855583,-285.676259,0.00022739,7]
[381925873,1756411855592,-299.35,0.00022739,2]
[381925874,1756411855602,-268.83,0.00022739,2]
[381925875,1756411855611,-429.32,0.00022739,2]
[381925876,1756411855621,-294.04,0.00022739,2]
[381925877,1756411855631,-156.56,0.00022739,2]
[381925878,1756411855640,-4619.09,0.00022739,2]
[381925879,1756411855650,-495.97,0.00022739,2]
[381925880,1756411855659,-480.0,0.00022739,2]
[381925881,1756411855670,-1951.19,0.00022739,2]
[381925882,1756411855679,-2127.68,0.00022739,2]
[381925883,1756411855689,-4797.2,0.00022739,2]
[381925884,1756411855698,-480.0,0.00022739,2]
[381925885,1756411855707,-480.0,0.00022739,2]
[381925886,1756411855717,-2717.58,0.00022739,2]
[381925887,1756411855727,-579.96,0.00022739,2]
[381925888,1756411855737,-195.247387,0.00022739,7]
[381925889,1756411855747,-151.0,0.00022739,7]
[381925890,1756411855756,-151.0,0.00022739,7]
[381925891,1756411855765,-151.0,0.00022739,7]
[381925892,1756411855775,-1976.13,0.00022739,2]
[381925893,1756411855785,-151.0,0.00022739,7]
[381925894,1756411855795,-151.0,0.00022739,7]
[381925895,1756411855805,-151.0,0.00022739,7]
[381925896,1756411855815,-514.87,0.00022739,2]
[381925897,1756411855825,-2991.83,0.00022739,2]
[381925898,1756411855834,-480.0,0.00022739,2]
[381925899,1756411855844,-480.0,0.00022739,2]
[381925900,1756411855854,-480.0,0.00022739,2]
[381925901,1756411855863,-660.99,0.00022739,2]
[381925902,1756411855873,-480.0,0.00022739,2]
[381925903,1756411855882,-500.0,0.0002274,2]
[381925904,1756411855892,-250.0,0.00022884,2]
[381925905,1756411855902,-460.0,0.00022935,2]
[381925906,1756411855911,-705.469654,0.0002296,7]
[381925907,1756411855920,-705.469654,0.0002296,7]
[381925908,1756411855933,-623.300659,0.0002296,7]
[381925909,1756411855942,-705.469654,0.0002296,7]
[381925910,1756411855952,-623.300659,0.0002296,7]
[381925911,1756411855961,-151.0,0.0002296,7]
[381925912,1756411855971,-705.469654,0.0002296,7]
[381925913,1756411855980,-623.300659,0.0002296,7]
[381925914,1756411855990,-162.839228,0.0002296,7]
[381925915,1756411856000,-623.300659,0.0002296,7]
[381925916,1756411856009,-162.839228,0.0002296,7]
[381925917,1756411856019,-162.839228,0.0002296,7]
[381925918,1756411856029,-162.839228,0.0002296,7]
[381925919,1756411856039,-283.31792,0.0002296,7]
[381925920,1756411856049,-151.0,0.0002296,7]
[381925921,1756411856058,-151.0,0.0002296,7]
[381925922,1756411856067,-496.542923,0.0002296,7]
[381925923,1756411856077,-222.066546,0.0002296,7]
[381925924,1756411856086,-496.542923,0.0002296,7]
[381925925,1756411856095,-496.542923,0.0002296,7]
[381925926,1756411856105,-375.31674477,0.0002296,7]
[381925927,1756411856119,-121.22617823,0.0002296,7]
[381925928,1756411856128,-160.0,0.00023,2]
[381925929,1756411856138,-182.55454446,0.00023013,2]
[381925930,1756411856148,-45.11259732,0.00023013,7]
[381925931,1756411856160,-105.88740268,0.00023013,7]
[381925932,1756411856169,-2755.47822407,0.00023013,2]
[381925933,1756411914169,182.271016,0.00013699,2]
[381925935,1756411951036,-600.0,0.00019561,20]
[381925936,1756412012964,-600.0,0.00019561,20]
[381925937,1756412098648,-600.0,0.00019561,20]
[381925939,1756412133838,-600.0,0.00019561,20]
[381925940,1756412201838,-600.0,0.00019561,20]
[381925941,1756412391548,482.0,0.00027397,120]
[381925942,1756412437341,5000.0,0.000173,6]
[381925943,1756412459150,5000.0,0.000173,6]
[381925949,1756412678279,-248.17671881,0.00017147,2]
[381925950,1756412681122,-283.28644078,0.00017147,2]
[381925951,1756412684798,-151.16803761,0.00017147,2]
[381925952,1756412686628,-185.67179556,0.00017147,2]
[381925954,1756412689634,-194.16201245,0.00017147,2]
[381925955,1756412692588,-255.34055646,0.00017147,2]
[381925956,1756412694276,-215.33420831,0.00017147,2]
[381925957,1756412701257,-296.41184731,0.00017147,2]
[381925958,1756412703102,-160.97979663,0.00017147,2]
[381925959,1756412704733,-168.94994048,0.00017147,2]
[381925960,1756412709524,-289.42879766,0.00017147,2]
[381925961,1756412712907,-208.93462475,0.00017147,2]
[381925962,1756412718514,-317.21845871,0.00017147,2]
[381925963,1756412721003,-357.26940984,0.00017147,2]
[381925964,1756412725805,-170.070442,0.00017147,2]
[381925966,1756412812400,400.0,0.0002739,120]
[381925967,1756412870637,5000.0,0.000173,6]
[381925968,1756412895524,5000.0,0.000173,6]
[381925969,1756412917639,5000.0,0.000167,2]
[381925970,1756412923098,150.999999,0.0002,120]
[381925971,1756412925472,1279.55893167,0.000167,2]
[381925973,1756412940173,234.421285,0.00013699,2]
[381925974,1756412941284,2282.26484145,0.000167,2]
[381925975,1756412941306,2717.73515855,0.000167,2]
[381925977,1756412949723,3720.44106833,0.000167,2]
[381925982,1756412964848,3561.83377312,0.000167,2]
[381925983,1756412964870,1438.16622688,0.000167,2]
[381925984,1756412986881,5000.0,0.000167,2]
[381925985,1756412995742,3561.84377312,0.000167,2]
[381925986,1756412995766,1438.15622688,0.000167,2]
[381925987,1756413004162,5000.0,0.000167,2]
[381925989,1756413022689,-271.72944804,0.00016876,2]
[381925990,1756413024783,-325.14251269,0.00016876,2]
[381925991,1756413027561,-372.37459553,0.00016876,2]
[381925992,1756413029574,3561.85377312,0.000167,2]
[381925993,1756413029603,1438.14622688,0.000167,2]
[381926037,1756413032490,-310.34237541,0.00016876,2]
[381926039,1756413032500,-5000.0,0.00017046,2]
[381926042,1756413032510,-1186.50691668,0.00017218,2]
[381926045,1756413032519,-300.0,0.00017317,2]
[381926046,1756413032529,-1200.0,0.00017317,2]
[381926050,1756413032538,-482.40267983,0.00017318,2]
[381926052,1756413032547,-489.60473379,0.00017318,2]
[381926054,1756413032557,-500.0,0.00017318,2]
[381926056,1756413032567,-500.0,0.00017318,2]
[381926057,1756413032578,-500.0,0.00017318,2]
[381926058,1756413032588,-500.0,0.00017318,2]
[381926059,1756413032597,-575.85033513,0.00017318,2]
[381926060,1756413032607,-500.0,0.00017318,2]
[381926061,1756413032616,-500.0,0.00017318,2]
[381926062,1756413032627,-500.0,0.00017318,2]
[381926065,1756413032636,-500.0,0.00017318,2]
[381926068,1756413032645,-500.0,0.00017318,2]
[381926070,1756413032655,-500.0,0.00017318,2]
[381926071,1756413032664,-500.0,0.00017318,2]
[381926072,1756413032673,-500.0,0.00017318,2]
[381926073,1756413032682,-500.0,0.00017318,2]
[381926074,1756413032691,-500.0,0.00017318,2]
[381926075,1756413032702,-500.0,0.00017318,2]
[381926076,1756413032712,-500.0,0.00017318,2]
[381926077,1756413032721,-500.0,0.00017318,2]
[381926078,1756413032732,-500.0,0.00017318,2]
[381926079,1756413032742,-500.0,0.00017318,2]
[381926080,1756413032752,-500.0,0.00017318,2]
[381926081,1756413032762,-388.53519806,0.00017318,2]
[381926082,1756413032772,-500.0,0.00017318,2]
[381926083,1756413032781,-500.0,0.00017318,2]
[381926084,1756413032791,-500.0,0.00017318,2]
[381926085,1756413032800,-500.0,0.00017318,2]
[381926086,1756413032810,-616.35710237,0.00017318,2]
[381926087,1756413032819,-158.36139589,0.00017318,2]
[381926088,1756413032827,-500.0,0.00017318,2]
[381926089,1756413032837,-500.0,0.00017318,2]
[381926090,1756413032846,-258.4699,0.00017318,2]
[381926091,1756413032856,-500.0,0.00017318,2]
[381926092,1756413032867,-408.62266856,0.00017318,2]
[381926093,1756413032877,-500.0,0.00017318,2]
[381926094,1756413032889,-500.0,0.00017318,2]
[381926095,1756413032899,-500.0,0.00017318,2]
[381926096,1756413032908,-500.0,0.00017318,2]
[381926097,1756413032918,-500.0,0.00017318,2]
[381926098,1756413032932,-500.0,0.00017318,2]
[381926099,1756413032942,-500.0,0.00017318,2]
[381926100,1756413032952,-500.0,0.00017318,2]
[381926101,1756413032961,-500.0,0.00017318,2]
[381926102,1756413032971,-500.0,0.00017318,2]
[381926103,1756413032981,-500.0,0.00017318,2]
[381926104,1756413032990,-500.0,0.00017318,2]
[381926105,1756413033000,-500.0,0.00017318,2]
[381926106,1756413033010,-500.0,0.00017318,2]
[381926107,1756413033021,-500.0,0.00017318,2]
[381926108,1756413033031,-500.0,0.00017318,2]
[381926109,1756413033040,-500.0,0.00017318,2]
[381926110,1756413033051,-500.0,0.00017318,2]
[381926111,1756413033061,-500.0,0.00017318,2]
[381926112,1756413033071,-500.0,0.00017318,2]
[381926113,1756413033081,-500.0,0.00017318,2]
[381926114,1756413033092,-500.0,0.00017318,2]
[381926115,1756413033102,-500.0,0.00017318,2]
[381926116,1756413033112,-500.0,0.00017318,2]
[381926117,1756413033121,-500.0,0.00017318,2]
[381926118,1756413033131,-500.0,0.00017318,2]
[381926119,1756413033140,-500.0,0.00017318,2]
[381926120,1756413033150,-268.43681471,0.00017318,2]
[381926121,1756413033162,-500.0,0.00017318,2]
[381926122,1756413033180,-500.0,0.00017318,2]
[381926123,1756413033190,-500.0,0.00017318,2]
[381926124,1756413033201,-500.0,0.00017318,2]
[381926125,1756413033213,-500.0,0.00017318,2]
[381926126,1756413033223,-500.0,0.00017318,2]
[381926127,1756413033235,-500.0,0.00017318,2]
[381926128,1756413033245,-500.0,0.00017318,2]
[381926129,1756413033254,-500.0,0.00017318,2]
[381926130,1756413033263,-500.0,0.00017318,2]
[381926131,1756413033408,-500.0,0.00017318,2]
[381926132,1756413033417,-500.0,0.00017318,2]
[381926133,1756413033427,-500.0,0.00017318,2]
[381926134,1756413033436,-500.0,0.00017318,2]
[381926135,1756413033445,-500.0,0.00017318,2]
[381926136,1756413033455,-500.0,0.00017318,2]
[381926137,1756413033464,-500.0,0.00017318,2]
[381926138,1756413033473,-500.0,0.00017318,2]
[381926139,1756413033483,-500.0,0.00017318,2]
[381926140,1756413033492,-200.0,0.00017318,2]
[381926141,1756413033502,-500.0,0.00017318,2]
[381926142,1756413033513,-500.0,0.00017318,2]
[381926143,1756413033523,-500.0,0.00017318,2]
[381926144,1756413033532,-500.0,0.00017318,2]
[381926145,1756413033542,-500.0,0.00017318,2]
[381926146,1756413033553,-271.72944804,0.00017318,2]
[381926147,1756413033563,-46649.1194012,0.00017318,2]
[381926148,1756413033574,-500.0,0.00017319,2]
[381926149,1756413033586,-500.0,0.00017373,2]
[381926150,1756413033596,-183.51227797,0.00017395,2]
[381926151,1756413033606,-269.35155791,0.000174,2]
[381926152,1756413033616,-637.84749891,0.000174,2]
[381926153,1756413033626,-500.0,0.000174,2]
[381926154,1756413033636,-508.09452377,0.000174,2]
[381926155,1756413033646,-445.18317847,0.000174,2]
[381926156,1756413033656,-500.0,0.00017473,2]
[381926157,1756413033665,-496.27896564,0.00017473,2]
[381926158,1756413033675,-500.0,0.00017473,2]
[381926159,1756413033684,-500.0,0.00017473,2]
[381926160,1756413033694,-500.0,0.00017673,2]
[381926161,1756413033704,-472.506722,0.00017718,2]
[381926162,1756413033713,-1021.25177441,0.00017921,2]
[381926163,1756413033724,-1000.0,0.00018021,2]
[381926164,1756413033733,-300.0,0.0001804,2]
[381926165,1756413033743,-300.0,0.0001804,2]
[381926166,1756413033753,-500.0,0.00018221,2]
[381926167,1756413033763,-600.0,0.0001841,2]
[381926168,1756413033773,-532.02252154,0.00018417,2]
[381926169,1756413033783,-1500.0,0.00018568,2]
[381926170,1756413033792,-420.0,0.00018908,2]
[381926171,1756413033802,-400.0,0.00019001,2]
[381926172,1756413033811,-478.34706926,0.00019078,2]
[381926173,1756413033820,-200.0,0.000191,2]
[381926174,1756413033829,-2000.0,0.00019116,2]
[381926175,1756413033843,-207.56147128,0.00019166,2]
[381926176,1756413033851,-321.63,0.00019168,3]
[381926177,1756413033861,-160.81,0.00019168,3]
[381926178,1756413033871,-500.0,0.00019173,2]
[381926179,1756413033880,-500.0,0.00019173,2]
[381926180,1756413033889,-296.98012232,0.00019173,2]
[381926181,1756413033898,-500.0,0.00019173,2]
[381926182,1756413033907,-500.0,0.00019173,2]
[381926183,1756413033917,-500.0,0.00019173,2]
[381926184,1756413033928,-500.0,0.00019173,2]
[381926185,1756413033940,-500.0,0.00019173,2]
[381926186,1756413033950,-500.0,0.00019173,2]
[381926187,1756413033959,-327.25911731,0.00019173,2]
[381926188,1756413033968,-500.0,0.00019173,2]
[381926189,1756413033978,-500.0,0.00019173,2]
[381926190,1756413033988,-758.23003379,0.00019177,2]
[381926191,1756413033998,-480.0,0.00019178,2]
[381926192,1756413034008,-480.0,0.00019178,2]
[381926193,1756413034018,-480.0,0.00019178,2]
[381926194,1756413034028,-480.0,0.00019178,2]
[381926195,1756413034037,-480.0,0.00019178,2]
[381926196,1756413034046,-480.0,0.00019178,2]
[381926197,1756413034055,-480.0,0.00019178,2]
[381926198,1756413034064,-480.0,0.00019178,2]
[381926199,1756413034074,-480.0,0.00019178,2]
[381926200,1756413034083,-481.4890296,0.00019178,2]
[381926201,1756413034092,-480.0,0.00019178,2]
[381926202,1756413034102,-480.0,0.00019178,2]
[381926203,1756413034111,-480.0,0.00019178,2]
[381926204,1756413034120,-480.0,0.00019178,2]
[381926205,1756413034130,-480.0,0.00019178,2]
[381926206,1756413034139,-480.0,0.00019178,2]
[381926207,1756413034148,-480.0,0.00019178,2]
[381926208,1756413034157,-480.0,0.00019178,2]